Workbook

Sheet Starta
B1: OM DEN HÄR MALLEN
B2: Använd den här kundlönsamhetsanalys och spåra kundaktivitet, försäljningskostnader och övriga kostnader.
B3: Fyll i information som företagets namn och datum, och fyll i information i tabellerna.
B4: Värden i celler som innehåller formler och tabellen Sammanfattande statistik beräknas automatiskt och diagrammet uppdateras.
B5: Obs!
B6: Ytterligare anvisningar finns i kolumn A i kalkylbladet KUNDLÖNSAMHET. Den här texten har avsiktligt dolts. Om du vill ta bort texten markerar du kolumn A och väljer sedan TA BORT. Om du vill visa texten markerar du kolumn A och ändrar sedan teckenfärg.
B7: Om du vill läsa mer om tabeller i det här kalkylbladet trycker du på SKIFT och sedan på F10 i en tabell, väljer alternativet TABELL och väljer sedan ALTERNATIV TEXT.

Sheet Kundlönsamhet
A1: Skapa en kundlönsamhetsanalys i det här kalkylbladet. Anvisningar för hur du använder det här kalkylbladet finns i cellerna i den här kolumnen. Använd nedåtpil för att komma igång.
A2: Ange företagets namn i cellen till höger. | B2: Företagets namn
A3: Kalkylbladets rubrik finns i cellen till höger. | B3: Kundlönsamhetsanalys
A4: Ange datum i cellen till höger. | B4: Datum
A5: Tips finns i cellen till höger. | B5: Grå celler beräknas automatiskt. Du behöver inte skriva in något i dem.
A6: Ange information i tabellen Kundaktivitet som börjar i cellen till höger. Fler anvisningar finns i cell A12. | B6: Kundaktivitet: | C6: Segmentnamn 1 | D6: Segmentnamn 2 | E6: Segmentnamn 3 | F6: Totalt
B7: Antal aktiva kunder – i början av perioden | C7: 5 | D7: 8 | E7: 8 | F7: =SUM(C7:E7) -> 21
B8: Antal nya kunder | C8: 2 | D8: 4 | E8: 4 | F8: =SUM(C8:E8) -> 10
B9: Antal förlorade/avslutade kunder | C9: -1 | D9: -2 | E9: -2 | F9: =SUM(C9:E9) -> -5
B10: Antal aktiva kunder – i slutet av perioden | C10: =SUBTOTAL(109,Kundaktivitet[Segmentnamn 1]) -> 6 | D10: =SUBTOTAL(109,Kundaktivitet[Segmentnamn 2]) -> 10 | E10: =SUBTOTAL(109,Kundaktivitet[Segmentnamn 3]) -> 10 | F10: =SUBTOTAL(109,Kundaktivitet[Totalt]) -> 26
A12: Ange information i tabellen Lönsamhetsanalys som börjar i cellen till höger. Fler anvisningar finns i cell A16. | B12: Lönsamhetsanalys: | C12: Segmentnamn 1 | D12: Segmentnamn 2 | E12: Segmentnamn 3 | F12: Totalt
B13: Intäkter per segment | C13: 1,500,000.00 kr | D13: 1,800,000.00 kr | E13: 2,500,000.00 kr | F13: =SUM(Lönsamhetsanalys[[#This Row],[Segmentnamn 1]:[Segmentnamn 3]]) -> 5,800,000.00 kr
B14: Viktning | C14: =+C13/$F$13 -> 26% | D14: =+D13/$F$13 -> 31% | E14: =+E13/$F$13 -> 43% | F14: =SUM(Lönsamhetsanalys[[#This Row],[Segmentnamn 1]:[Segmentnamn 3]]) -> 100%
A16: Ange information i tabellen Försäljningskostnader som börjar i cellen till höger. Fler anvisningar finns i cell A23. | B16: Försäljningskostnader: | C16: Segmentnamn 1 | D16: Segmentnamn 2 | E16: Segmentnamn 3 | F16: Totalt
B17: Löpande kostnader för tjänster och support | C17: 1,000,000.00 kr | D17: 1,400,000.00 kr | E17: 1,400,000.00 kr | F17: =SUM(C17:E17) -> 3,800,000.00 kr
B18: Övriga direkta kundkostnader | C18: 200,000.00 kr | D18: 100,000.00 kr | E18: 100,000.00 kr | F18: =SUM(C18:E18) -> 400,000.00 kr
B19: Total försäljningskostnad | C19: =SUM(C17:C18) -> 1,200,000.00 kr | D19: =SUM(D17:D18) -> 1,500,000.00 kr | E19: =SUM(E17:E18) -> 1,500,000.00 kr | F19: =SUM(F17:F18) -> 4,200,000.00 kr
B20: Bruttomarginal | C20: =+C13-C19 -> 300,000.00 kr | D20: =+D13-D19 -> 300,000.00 kr | E20: =+E13-E19 -> 1,000,000.00 kr | F20: =+F13-F19 -> 1,600,000.00 kr
B21: Viktning | C21: =MAX(0, MIN(1,C20/$F$20)) -> 19% | D21: =MAX(0, MIN(1,D20/$F$20)) -> 19% | E21: =MAX(0, MIN(1,E20/$F$20)) -> 63% | F21: =SUM(C21:E21) -> 100%
A23: Ange information i tabellen Övriga kostnader som börjar i cellen till höger. Fler anvisningar finns i cell A31. | B23: Övriga kostnader: | C23: Segmentnamn 1 | D23: Segmentnamn 2 | E23: Segmentnamn 3 | F23: Totalt
B24: Kundförvärv | C24: 105,000.00 kr | D24: 120,000.00 kr | E24: 235,000.00 kr | F24: =SUM(ÖvrigaKostnader[[#This Row],[Segmentnamn 1]:[Segmentnamn 3]]) -> 460,000.00 kr
B25: Marknadsföring för kunder | C25: 150,000.00 kr | D25: 125,000.00 kr | E25: 275,000.00 kr | F25: =SUM(C25:E25) -> 550,000.00 kr
B26: Kundförlust | C26: 80,000.00 kr | D26: 190,000.00 kr | E26: 140,000.00 kr | F26: =SUM(C26:E26) -> 410,000.00 kr
B27: Totala övriga kundkostnader | C27: =SUM(C24:C26) -> 335,000.00 kr | D27: =SUM(D24:D26) -> 435,000.00 kr | E27: =SUM(E24:E26) -> 650,000.00 kr | F27: =SUM(F24:F26) -> 1,420,000.00 kr
B28: Kundlönsamhet per segment | C28: =+C20-C27 -> -35,000.00 kr | D28: =+D20-D27 -> -135,000.00 kr | E28: =+E20-E27 -> 350,000.00 kr | F28: =SUM(C28:E28) -> 180,000.00 kr
B29: Viktning | C29: =MAX(0,MIN(1, C28/$F$28)) -> 0% | D29: =MAX(0,MIN(1, D28/$F$28)) -> 0% | E29: =MAX(0,MIN(1, E28/$F$28)) -> 100% | F29: =SUM(C29:E29) -> 100%
A31: Tabellen Sammanfattande statistik som börjar i cellen till höger uppdateras automatiskt. Fler anvisningar finns i cell A37. | B31: Sammanfattande statistik: | C31: Segmentnamn 1 | D31: Segmentnamn 2 | E31: Segmentnamn 3 | F31: Trend
B32: Genomsnittlig kostnad per ny kund | C32: =+C24/C8 -> 52,500.00 kr | D32: =+D24/D8 -> 30,000.00 kr | E32: =+E24/E8 -> 58,750.00 kr
B33: Genomsnittlig kostnad per förlorad kund | C33: =-C26/C9 -> 80,000.00 kr | D33: =-D26/D9 -> 95,000.00 kr | E33: =-E26/E9 -> 70,000.00 kr
B34: Genomsnittlig marknadsföringskostnad per aktiv kund | C34: =+C26/Kundaktivitet[[#Totals],[Segmentnamn 1]] -> 13,333.33 kr | D34: =+D25/Kundaktivitet[[#Totals],[Segmentnamn 2]] -> 12,500.00 kr | E34: =+E25/Kundaktivitet[[#Totals],[Segmentnamn 3]] -> 27,500.00 kr
B35: Genomsnittlig vinst (förlust) per kund | C35: =+C29/Kundaktivitet[[#Totals],[Segmentnamn 1]] -> 0.00 kr | D35: =+D28/Kundaktivitet[[#Totals],[Segmentnamn 2]] -> -13,500.00 kr | E35: =+E28/Kundaktivitet[[#Totals],[Segmentnamn 3]] -> 35,000.00 kr
A37: Grupperat stående stapeldiagram som visar sammanfattande statistik per kundsegment finns i cellen till höger. | B37: Grupperat stående stapeldiagram som visar sammanfattande statistik per kundsegment finns i den här cellen.
